Cogmind - Beta 10.2 @@@ ROGUE MODE // 2021.08.27 @ 13:13:19 Player: Weasel455 Result: Self-destructed Performance ------------- Evolutions (1) 500 Regions Visited (5) 1000 Robots Destroyed (52) 260 Value Destroyed (1164) 1164 Prototype IDs (4) 80 Alien Tech Used (0) 0 Bonus (559) 559 TOTAL SCORE: 3563 Bonus ------- Met Imprinter 300 Was Imprinted 300 Friendly Fire -41 Cogmind --------- Core Integrity 84/400 Matter 14/300 Energy 100/100 System Corruption 7% Temperature Cool (0) Movement Walking (140) Location -7/Zion Parts ------- > --- POWER (1) -------- (None) > --- PROPULSION (2) --- Makeshift Leg Makeshift Leg > --- UTILITY (3) ------ Large Storage Unit Large Storage Unit Core Analyzer > --- WEAPON (3) ------- CR-A16's Pointy Stick > --- INVENTORY (16) --- Light Ion Engine Light Ion Engine Improved Ion Engine Deuterium Engine Angular Momentum Engine Makeshift Leg Improved Heat Sink Large Storage Unit Advanced Sensor Array Medium Armor Plating EM Pulse Gun EM Pulse Gun Heavy Assault Rifle Peak State ------------ > --- POWER ------------ Light Antimatter Reactor > --- PROPULSION ------- Light Treads Improved Treads > --- UTILITY ---------- Improved Heat Sink Large Storage Unit Large Storage Unit > --- WEAPON ----------- Heavy Assault Rifle Heavy Assault Rifle Improved Grenade Launcher > --- INVENTORY -------- Light Ion Engine Light Ion Engine Improved Ion Engine Aluminum Leg Aluminum Leg Improved Heat Sink Large Storage Unit Advanced Sensor Array Medium Armor Plating EM Pulse Gun EM Pulse Gun Beam Rifle Heavy Assault Rifle KE Penetrator Mini Grenade Launcher CR-A16's Pointy Stick [Rating: 25] Favorites ----------- Power Light Ion Engine Engine Light Ion Engine Reactor Light Antimatter Reactor Propulsion Improved Treads Treads Improved Treads Leg Aluminum Leg Utility Large Storage Unit Device Improved Heat Sink Storage Large Storage Unit Processor Salvage Targeting Computer Protection Light Armor Plating Weapon Heavy Assault Rifle Energy Gun Beam Rifle Ballistic Gun Heavy Assault Rifle Launcher Mini Grenade Launcher Piercing Weapon CR-A16's Pointy Stick Build | -11 -10 -10 -9 -9 -7 ------- Run | Scr Mat Min Mat Min Zio Slots Evolved 2 | . . . 2 . . Power . | . . . . . . Propulsion . | . . . . . . Utility 1 | . . . 1 . . Weapon 1 | . . . 1 . . Parts Attached 59 | 6 19 2 11 . 21 Power 8 | 1 3 1 1 . 2 Engine 7 | 1 3 1 1 . 1 Core . | . . . . . . Reactor 1 | . . . . . 1 Propulsion 16 | 2 4 1 1 . 8 Treads 8 | . 4 1 1 . 2 Leg 8 | 2 . . . . 6 Wheel . | . . . . . . Hover . | . . . . . . Flight . | . . . . . . Utility 14 | 1 6 . 5 . 2 Device 3 | . 1 . 2 . . Storage 4 | 1 2 . . . 1 Processor 4 | . 1 . 2 . 1 Hackware . | . . . . . . Protection 3 | . 2 . 1 . . Artifact . | . . . . . . Weapon 21 | 2 6 . 4 . 9 Energy Gun 4 | . 1 . 2 . 1 Energy Cannon . | . . . . . . Ballistic Gun 12 | 2 5 . 2 . 3 Ballistic Cannon . | . . . . . . Launcher 3 | . . . . . 3 Special Weapon . | . . . . . . Impact Weapon . | . . . . . . Slashing Weapon . | . . . . . . Piercing Weapon 2 | . . . . . 2 Special Melee Weapon . | . . . . . . Unidentified Prototypes . | . . . . . . Parts Lost 26 | . 5 3 4 . 14 Power 5 | . 2 1 1 . 1 Propulsion 8 | . 1 1 1 . 5 Utility 2 | . . 1 . . 1 Weapon 11 | . 2 . 2 . 7 Highest Loss Streak 6 | . 3 2 4 . 6 Average Slot Usage (%) 91 | . 98 84 95 100 90 Engine 10 | . 13 13 11 11 7 Treads 21 | . 26 27 21 22 18 Device 6 | . 5 . 9 11 8 Storage 17 | . 14 14 11 11 21 Processor 1 | . . . 8 . . Protection 2 | . 7 . 1 11 . Energy Gun 6 | . 1 . 15 11 8 Ballistic Gun 22 | . 26 28 16 22 19 Naked Turns . | . . . . . . Heaviest Build 57 | 11 28 28 36 36 57 Greatest Support 48 | 20 46 46 46 43 48 Greatest Overweight (x) 13 | 3 . . 1 . 13 Average Overweight (x) . | . . . . . 1 Largest Inventory Capacity 16 | 6 10 10 10 10 16 Average Capacity 12 | 5 7 10 10 10 15 Most Carried 16 | 2 10 10 10 10 16 Average Carried 11 | . 6 9 9 9 14 Final Capacity 16 | 6 10 10 10 10 16 Final Carried 13 | 2 10 10 10 10 13 Class Distribution -------------------- 51% | Mutant 44% | Gunner 3% | Tank Dominant Class ---------------- Mutant | -10/Materials Mutant | -10/Mines Gunner | -9/Materials Tank | -9/Mines Gunner | -7/Zion Resources | -11 -10 -10 -9 -9 -7 ----------- Run | Scr Mat Min Mat Min Zio Matter Collected 1295 | 258 350 213 190 36 248 Remotely . | . . . . . . Salvage Created 1628 | . 471 190 534 228 205 Parts 97 | . 33 12 28 6 18 Haulers Intercepted 1 | . 1 . . . . Recyclers Shooed 2 | . . 1 . 1 . Parts Field Recycled . | . . . . . . Retrieved Matter . | . . . . . . Parts Self-Destructed 2 | . . . . . 2 Prevented . | . . . . . . Kills | -11 -10 -10 -9 -9 -7 ------- Run | Scr Mat Min Mat Min Zio Combat Hostiles Destroyed 41 | . 14 9 13 3 2 Melee 1 | . . . . . 1 Guns 38 | . 14 9 12 3 . AOE 1 | . . . . . 1 Classes Destroyed 9 | . 3 . 4 . 2 Worker 1 | . . . 1 . . Hauler 1 | . 1 . . . . Recycler 2 | . . . 1 1 . Swarmer 18 | . 6 7 5 . . Grunt 19 | . 8 2 6 3 . Brawler 1 | . . . 1 . . Sentry 1 | . . . 1 . . Zionite 7 | . . . . . 7 Mutant 2 | . . . . . 2 Best Kill Streak 6 | . 6 5 6 4 2 Combat Bots Only 6 | . 6 5 5 3 1 Max Kills in Single Turn 2 | . 2 1 1 1 1 Gunslinging 1 | . 1 . . . . Exploded 1 | . . . . . 1 Melee 1 | . . . . . 1 Uniques/NPCs Destroyed . | . . . . . . Combat | -11 -10 -10 -9 -9 -7 -------- Run | Scr Mat Min Mat Min Zio Damage Taken 3575 | . 812 307 344 54 2058 Core 464 | . 99 49 38 . 278 Absorbed by Shields . | . . . . . . Core Remaining (%) 70 | 100 . 40 . . . Volleys Fired 162 | . 57 16 29 6 54 Largest 3 | . 2 2 3 3 3 Hottest 135 | . 60 46 135 102 102 Shots Fired 321 | . 114 32 87 18 70 Gun 300 | . 114 32 87 18 49 Cannon . | . . . . . . Launcher 21 | . . . . . 21 Special . | . . . . . . Kinetic 227 | . 107 32 33 12 43 Thermal 66 | . . . 54 6 6 Explosive 21 | . . . . . 21 Electromagnetic 7 | . 7 . . . . Robot Hit Streak 14 | . 12 7 12 14 13 Robot Miss Streak 3 | . 2 2 3 1 2 Penetration Max . | . . . . . . Secondary Targets 8 | . 3 4 . 1 . Max Gunslinging Chain 1 | . 1 1 . 1 . Shots Hit Robots 214 | . 80 24 58 15 37 Core Hits 85 | . 28 12 18 6 21 Critical Hits 3 | . . . . . 3 Critical Kills 2 | . . . . . 2 Critical Parts Destroyed 1 | . . . . . 1 Melee Attacks 38 | . . . . . 38 Impact . | . . . . . . Slashing . | . . . . . . Piercing 38 | . . . . . 38 Sneak Attacks . | . . . . . . Combat Hostiles . | . . . . . . Follow-up Attacks . | . . . . . . Damage Inflicted 3564 | . 886 362 738 236 1342 Guns 2685 | . 882 345 736 236 486 Cannons . | . . . . . . Explosions 562 | . . . . . 562 Melee 293 | . . . . . 293 Ramming 24 | . 4 17 2 . 1 Kinetic 1999 | . 816 345 232 163 443 Thermal 620 | . . . 504 73 43 Explosive 562 | . . . . . 562 Electromagnetic 66 | . 66 . . . . Impact . | . . . . . . Slashing . | . . . . . . Piercing 293 | . . . . . 293 Highest Corruption 7 | . . . . . 7 Average Corruption 5 | . . . . . 5 Corruption Purged . | . . . . . . Effects 27 | . . . . . 27 Message Errors 3 | . . . . . 3 Matter Fused 2 | . . . . . 2 Heat Flow Errors 3 | . . . . . 3 Energy Discharges 4 | . . . . . 4 Data Loss (minor) 2 | . . . . . 2 Data Loss (major) 1 | . . . . . 1 Misfires 1 | . . . . . 1 Targeting Errors 9 | . . . . . 9 Weapon Failures 2 | . . . . . 2 Overload Shots . | . . . . . . Overflow Damage 36 | . . . . . 36 Projectiles . | . . . . . . Explosions 36 | . . . . . 36 Melee . | . . . . . . Knockbacks . | . . . . . . Impact . | . . . . . . Kinetic . | . . . . . . Secondary . | . . . . . . Self-Inflicted Damage 507 | . . . . . 507 Shots 16 | . . . . . 16 Rammed 7 | . 2 3 1 . 1 Targets Rammed 8 | . 2 3 2 . 1 Kicked . | . . . . . . Crushed 1 | . . . 1 . . Highest Temperature 260 | . 80 15 222 30 260 Average Temperature 71 | . 29 6 92 22 78 Received Heat Transfer 765 | . 180 69 105 30 381 Siege Activations . | . . . . . . Robots Corrupted . | . . . . . . Combat Hostiles . | . . . . . . Parts Fried . | . . . . . . Impact Corruptions . | . . . . . . Robots Melted 1 | . . . 1 . . Combat Hostiles 1 | . . . 1 . . Parts Melted 6 | . . . 5 . 1 Heat Transferred 1591 | . . . 1295 185 111 Parts Sabotaged . | . . . . . . Parts Stolen . | . . . . . . Parts Stripped . | . . . . . . Power Chain Reactions . | . . . . . . Missiles Intercepted . | . . . . . . Alert | -11 -10 -10 -9 -9 -7 ------- Run | Scr Mat Min Mat Min Zio Peak Influence 214 | . 175 214 145 94 . Initial 19 | . . 9 5 19 . Average 75 | . 71 101 51 79 . Maximum Alert Level 1 | . . 1 . . . Low Security (%) 90 | 100 100 67 100 100 . Level 1 9 | . . 32 . . . Level 2 . | . . . . . . Level 3 . | . . . . . . Level 4 . | . . . . . . Level 5 . | . . . . . . High Security . | . . . . . . Max Security . | . . . . . . Squads Dispatched 3 | . 2 . 1 . . Investigation 1 | . 1 . . . . Extermination . | . . . . . . Reinforcement 2 | . 1 . 1 . . Assault . | . . . . . . Garrison . | . . . . . . Intercept . | . . . . . . Construction Impeded . | . . . . . . Haulers Reinforced . | . . . . . . Stealth | -11 -10 -10 -9 -9 -7 --------- Run | Scr Mat Min Mat Min Zio Distress Signals 5 | . 1 . 4 . . Communications Jammed . | . . . . . . Distress Signals . | . . . . . . Times Spotted 77 | . 22 11 22 3 19 Peak Tracking Total 9 | . 6 6 9 3 6 Tactical Retreats 3 | . . . 1 . 2 Traps | -11 -10 -10 -9 -9 -7 ------- Run | Scr Mat Min Mat Min Zio Traps Triggered 3 | . 3 . . . . Indirectly . | . . . . . . Trap Hack Attempts . | . . . . . . Triggered . | . . . . . . Disarmed . | . . . . . . Reprogrammed . | . . . . . . Reused . | . . . . . . Traps Extracted . | . . . . . . Installed . | . . . . . . Triggered . | . . . . . . Machines | -11 -10 -10 -9 -9 -7 ---------- Run | Scr Mat Min Mat Min Zio Machines Disabled 2 | . . . . . 2 Max in Single Turn 1 | . . . . . 1 Machines Sabotaged . | . . . . . . Garrisons Compromised . | . . . . . . Overloaded Fab Kills . | . . . . . . Fab Network Shutdowns . | . . . . . . Hacking | -11 -10 -10 -9 -9 -7 --------- Run | Scr Mat Min Mat Min Zio Machines Accessed 9 | . 5 . 4 . . Terminals 7 | . 3 . 4 . . Fabricators . | . . . . . . Repair Stations . | . . . . . . Recycling Units 2 | . 2 . . . . Scanalyzers . | . . . . . . Garrison Access . | . . . . . . Total Hacks 17 | . 10 . 7 . . Successful 10 | . 5 . 5 . . Failed 7 | . 5 . 2 . . Catastrophic 1 | . . . 1 . . Database Lockouts . | . . . . . . Manual 8 | . 2 . 4 . 2 Terminals 13 | . 6 . 7 . . Fabricators . | . . . . . . Repair Stations . | . . . . . . Recycling Units 4 | . 4 . . . . Scanalyzers . | . . . . . . Garrison Access . | . . . . . . Terminal Hacks 8 | . 3 . 5 . . Record 2 | . . . 2 . . Prototype ID Bank 2 | . 1 . 1 . . Unreport Threat 1 | . . . 1 . . Zone Layout 3 | . 2 . 1 . . Fabricator Hacks . | . . . . . . Repair Station Hacks . | . . . . . . Recycling Unit Hacks 1 | . 1 . . . . Retrieve Matter 1 | . 1 . . . . Scanalyzer . | . . . . . . Garrison Access Hacks . | . . . . . . Unauthorized Hacks 1 | . 1 . . . . Terminals . | . . . . . . Fabricators . | . . . . . . Repair Stations . | . . . . . . Recycling Units 1 | . 1 . . . . Reject 1 | . 1 . . . . Scanalyzers . | . . . . . . Garrison Access . | . . . . . . Data Cores Recovered . | . . . . . . Used . | . . . . . . Hacking Detections 7 | . 3 . 4 . . Full Trace Events 1 | . 1 . . . . Feedback Events . | . . . . . . Feedback Blocked . | . . . . . . Robot Schematics Acquired . | . . . . . . Robots Built . | . . . . . . Matter . | . . . . . . Time . | . . . . . . Total Robot Build Rating . | . . . . . . Part Schematics Acquired . | . . . . . . Parts Built . | . . . . . . Matter . | . . . . . . Time . | . . . . . . Total Part Build Rating . | . . . . . . Parts Repaired . | . . . . . . Time . | . . . . . . Parts Recycled . | . . . . . . Recycled Matter . | . . . . . . Retrieved Matter . | . . . . . . Retrieved Components . | . . . . . . Parts Scanalyzed . | . . . . . . Part Schematics Acquired . | . . . . . . Parts Damaged . | . . . . . . Bothacking | -11 -10 -10 -9 -9 -7 ------------ Run | Scr Mat Min Mat Min Zio Used RIF Installer . | . . . . . . Robots Hacked . | . . . . . . Non-combat . | . . . . . . Combat . | . . . . . . Robot Hacks Applied . | . . . . . . Relay Couplers Released . | . . . . . . Robots Rewired . | . . . . . . Allies Hacked . | . . . . . . Hacks Repelled . | . . . . . . Allies | -11 -10 -10 -9 -9 -7 -------- Run | Scr Mat Min Mat Min Zio Total Allies 4 | . . . . . 4 Largest Group 4 | . . . . . 4 Highest-Rated Group 148 | . . . . . 148 Highest-Rated Ally 38 | . . . . . 38 Total Orders . | . . . . . . Ally Attacks . | . . . . . . Total Damage . | . . . . . . Kills . | . . . . . . Allies Corrupted . | . . . . . . Allies Melted . | . . . . . . Intel | -11 -10 -10 -9 -9 -7 ------- Run | Scr Mat Min Mat Min Zio Robot Analysis Total . | . . . . . . Derelict Logs Recovered 3 | . . 1 . 1 1 Drone Launches . | . . . . . . Drone Recoveries . | . . . . . . Exploration | -11 -10 -10 -9 -9 -7 ------------- Run | Scr Mat Min Mat Min Zio Turns Passed 4890 | 63 1050 763 520 80 2414 Spaces Moved 2388 | 44 510 433 231 36 1134 Core 33 | 12 . . . . 21 Treads 2219 | . 467 433 231 36 1052 Legs 136 | 32 43 . . . 61 Wheels . | . . . . . . Hover . | . . . . . . Flight . | . . . . . . Fastest Speed 50 | 50 120 160 160 160 140 Average Speed 171 | 118 156 160 160 160 187 Slowest Speed 700 | 200 160 160 180 160 700 Overloaded Moves . | . . . . . . Propulsion Burnouts . | . . . . . . Robots Hopped . | . . . . . . Cave-ins Triggered 1 | . . . . . 1 Exploration Rate (%) 51 | 4 93 84 26 14 90 Regions Visited 5 Branch Regions 3 Pre-discovered Areas 2 | . . . . . 2 Known Exits Taken . | . . . . . . Unknown Exits Taken 5 | 1 1 1 1 1 . Scrap Searched 4 | . . 1 . . 3 Spaces Dug 34 | . . . . . 34 Terrain Destroyed 124 | . . . . . 124 Melee 1 | . . . . . 1 Projectile . | . . . . . . AOE 123 | . . . . . 123 Terrain Rammed . | . . . . . . Walls Destroyed . | . . . . . . Machines Disabled . | . . . . . . Actions | -11 -10 -10 -9 -9 -7 --------- Run | Scr Mat Min Mat Min Zio Total 2798 | 51 649 469 313 46 1270 Wait 83 | . 32 15 33 3 . Move 2383 | 43 509 432 230 35 1134 Hop . | . . . . . . Pick Up 39 | 2 16 1 6 1 13 Fast Attach 27 | 6 10 1 3 . 7 Attach 22 | . 6 1 5 . 10 Detach 10 | . 5 . 1 . 4 Swap 10 | . 3 . 3 . 4 Drop 16 | . 9 . 1 1 5 Fire 162 | . 57 16 29 6 54 Melee 38 | . . . . . 38 Ram . | . . . . . . Kick . | . . . . . . Crush 8 | . 2 3 2 . 1 Escape Stasis . | . . . . . . Rewire . | . . . . . . Trap . | . . . . . . Miscellaneous . | . . . . . . Route ------- -11/Scrapyard -10/Materials (discovered 4 exits: *Mat x3 / [*Min]) -10/Mines (discovered 2 exits: *Mat x2) -9/Materials (discovered 2 exits: Mat / [*Min]) -9/Mines -7/Zion History --------- Turn | Location | Event 22 | -11/Scrapyard | Discovered new exit (range 15) 64 | -11/Scrapyard | Entered Materials 306 | -10/Materials | Build established: Mutant 530 | -10/Materials | Discovered new exit (range 11) 714 | -10/Materials | Discovered new exit (range 8) 839 | -10/Materials | Lost 3 parts (1p2w) 848 | -10/Materials | Discovered new exit (range 9) 1023 | -10/Materials | Discovered new exit (range 16) 1114 | -10/Materials | Entered Mines 1114 | -10/Mines | Discovered new exit (range 8) 1160 | -10/Mines | Met a Derelict bent on vengeance 1227 | -10/Mines | Core integrity fell below 50% 1293 | -10/Mines | Received a Rocket Launcher from a helpful Derelict 1343 | -10/Mines | Learned 2 Materials zone layouts 1851 | -10/Mines | Discovered new exit (range 7) 1877 | -10/Mines | Entered Materials 1877 | -9/Materials | Evolved 2 slots: Utility x1, Weapon x1 1878 | -9/Materials | Identified exit to Materials 2013 | -9/Materials | Discovered new exit (range 21) 2234 | -9/Materials | Lost 4 parts (1p1n2w) 2236 | -9/Materials | Build established: Gunner 2397 | -9/Materials | Entered Mines 2469 | -9/Mines | A Derelict revealed a hidden shortcut to a safe place 2477 | -9/Mines | Entered Zion 2611 | -7/Zion | Found CR-A16's Pointy Stick 2693 | -7/Zion | Learned Factory emergency access door positions 2877 | -7/Zion | Learned location of Quarantine (-3) 2922 | -7/Zion | Learned 4 Factory zone layouts 2999 | -7/Zion | Learned location of Warlord (-4) 3262 | -7/Zion | Received a visual enhancement algorithm 3347 | -7/Zion | Visited the Megawrench Repair Shop 3347 | -7/Zion | Megawrench repaired 6 parts 3768 | -7/Zion | Imprinted 3770 | -7/Zion | Declared Zion's savior 4140 | -7/Zion | Given the Hacking Drone Bay 4327 | -7/Zion | Attacked by Zionites 4391 | -7/Zion | Lost 6 parts (1p2n3w) 4492 | -7/Zion | Core integrity fell below 50% 4585 | -7/Zion | Build established: Mutant 4639 | -7/Zion | Crushed by falling debris 4670 | -7/Zion | Lost 4 parts (2n2w) 4891 | -7/Zion | Self-destructed Last Messages --------------- 04784_ System corrupted: KE Penetrator misfires. 04786_ Slug penetrates Wall. 04808_ System corrupted: Component data lost. GE-D4N(z) bursts out of the Twisted Machinery. 04818_ KE Penetrator destroyed. 04824_ GE-D4N(z) destroyed. HL-Q9F(z) bursts out of the Twisted Machinery. 04826_ HL-Q9F(z) pulls a Mak. Axe out of the Twisted Machinery. 04827_ HL-Q9F(z) suffers critical hit. 04827_ HL-Q9F(z) destroyed. 04831_ WNDUHW/SJNF5,<6WL6H9CC|TPV G3 04836_ Acquired 16 matter. 04848_ Acquired Mak. Leg. 04849_ System corrupted: Energy discharge (-20). 04850_ Acquired 10 matter. 04853_ Acquired Unknown Processor. 04853_ Identified Core Analyzer. 04858_ Acquired Mak. Leg. 04869_ J8-WW4(z) destroyed. 04872_ Acquired 13 matter. Map ----- +----------------------------------------------------+ | ?????????????????????????????????????????????????? | | ??????????????????????????????????########???????? | | ??????????????????????????????????#"#""#"#???????? | | ??????????????????????????????????#"" " "#???????? | | ??????????????????????????????????#" "#???????? | | ??????????????????????????????????#" "#???????? | | ??????????????????????????????????## ##???????? | | ??????????????????????????????????#"" ""####????? | | ?????????????????????????????????## ""#????? | | ????????????????????????????????##" "" ##????? | | ?????????????????????????####?###""""" #?##?? | | ?????????????????????????#""##"###"""" ##"#?? | | ????????????????????????##""""####"" #### | | ????????????????????????#"" """###" ##" | | ???????????????????????##"" """""" ## | | ??????????###????????#"""""" ""##" "" # # | | ?????????## ####??????#"#""" """"" """ "" | | ???????### ## #########"""" ""#"" """ """ | | ???????# # ## # #"" ""##" """ | | ??????### # # ### #"" """ """ """"" | | ??????# # ### " """ """""" | | ?????### # # "" " ""#""" | | ???### ######### """" "#"#"" | | ???# ## #???????" # ## ## """""""" | | ??## #???????# * "" # # """""" " | | ??# ####??????## @/ """ z "" """"" " | | ??# #?????????" === % %[ "" " | | ??# # #?????????" = * = """ | | ?## # #???####### / /== """" # z # | | ?# #???# # # ! " """ ## ## | | ??# # #???# # """"# " ##"" """" | | ??# ###### #######"" ##"####"#""" """ """" | | ??# # # #?????######"""""""""" """ """""" | | ??## ## ##??????????##" """" """ ""##"" | | ???## ## # ##?????###??##" """ """ """##" | | ????# # ###?????##""##""" "" """ ""##"" | | ????#######???????#"""""# " "" """ ""#"## | | ??????????????????#"" " " "" ""##"# | | ??????????????????#" " "" """""# | | ??????????????????#"""""# " "" """ "" | | ??????????????????##""### " "" "" | | ??????????????????#####"" " " " | | ???????????????####"##"#"" " | | ????????????####"#""""#"" "" "" | | ?############"""""""""""" " "" " | | """""""""" #""" """"" " "" | | """""""""" ##"" " """# | | "" #""" """## | | """""" ##"" """ """ # """##? | | """"""" """""" """" ""##?? | +----------------------------------------------------+ Best States ------------- Heat Dissipation 42 Energy Generation 21 Energy Capacity 275 Matter Stores 300 Matter Capacity 300 Sight Range 18 Terrain Scan Density 10 Armor Coverage 225 Evasion (%) 40 Core Analysis 6 Recoil Reduction 2 Salvage Targeting 1 Item Schematics ----------------- None Robot Schematics ------------------ None Fabricated ------------ Nothing Alien Tech Used ----------------- None Achievements -------------- True Hacker Unlikely Earthworm Challenges ------------ None Game ------ Seed ImprovedImpulseGun Manual? 0 Play Time 01:01:34 Cumulative 45.9 hours Start 2021.08.27 @ 12:05:59 End 2021.08.27 @ 13:13:19 Sessions 1 Manual Loads 0 Difficulty Rogue Special Mode None Game No. 45 Rogue 45 Adventurer 0 Explorer 0 Win Type - Total 0 Types 0/0/0/0/0/0/0/0/0 Lore% 29 Gallery% 35 Achievement% 18 Wizard Run 0 Options --------- ASCII 1 Keyboard 1 Movement Numpad Keybinds 0 Fullscreen 1 Font 24/Smallcaps Map View 76x50 Tactical HUD 1 Map Filters NONE Filters NONE Steam 1 RUN: 84bccb31-6033-4839-84e8-2820a1b131ff